lending/lending_fUSD_20250429
["ID","MTS","AMOUNT","RATE_DAILY","PERIOD"]
[359313613,1745913043873,-470.0,0.00028233,2]
[359313614,1745913043884,-470.0,0.00028233,2]
[359313615,1745913043894,-470.0,0.00028233,2]
[359313616,1745913043906,-470.0,0.00028233,2]
[359313617,1745913043915,-997.0,0.00028233,2]
[359313618,1745913043925,-626.98,0.00028233,2]
[359313619,1745913043935,-470.0,0.00028233,2]
[359313620,1745913043946,-470.0,0.00028233,2]
[359313621,1745913043955,-610.32,0.00028233,2]
[359313622,1745913043966,-508.87562221,0.00028233,2]
[359313623,1745913043975,-735.96,0.00028233,2]
[359313624,1745913043987,-470.0,0.00028233,2]
[359313625,1745913043996,-470.0,0.00028233,2]
[359313626,1745913044005,-470.0,0.00028233,2]
[359313627,1745913044016,-2166.82,0.00028233,2]
[359313628,1745913044026,-470.0,0.00028233,2]
[359313629,1745913044035,-470.0,0.00028233,2]
[359313630,1745913044046,-470.0,0.00028233,2]
[359313631,1745913044056,-470.0,0.00028233,2]
[359313632,1745913044066,-638.77,0.00028233,2]
[359313633,1745913044075,-470.0,0.00028233,2]
[359313634,1745913044084,-8521.850208,0.00028233,2]
[359313635,1745913044093,-6170.66,0.00028233,2]
[359313636,1745913044103,-400.0,0.00028233,2]
[359313637,1745913044112,-541.5374558,0.00028234,2]
[359313639,1745913044121,-470.0,0.00028234,2]
[359313641,1745913044131,-470.0,0.00028234,2]
[359313643,1745913044140,-584.89,0.00028234,2]
[359313644,1745913044149,-470.0,0.00028234,2]
[359313645,1745913044158,-470.0,0.00028234,2]
[359313646,1745913044168,-470.0,0.00028234,2]
[359313647,1745913044177,-470.0,0.00028234,2]
[359313648,1745913044187,-528.17936136,0.00028234,2]
[359313649,1745913044196,-470.0,0.00028234,2]
[359313650,1745913044205,-470.0,0.00028234,2]
[359313651,1745913044216,-470.0,0.00028234,2]
[359313652,1745913044225,-470.0,0.00028234,2]
[359313653,1745913044235,-470.0,0.00028234,2]
[359313654,1745913044244,-470.0,0.00028234,2]
[359313655,1745913044254,-601.14,0.00028234,2]
[359313656,1745913044264,-250.0,0.00028234,2]
[359313657,1745913044274,-470.0,0.00028234,2]
[359313658,1745913044285,-162.80253024,0.00028234,2]
[359313659,1745913044295,-176.17254964,0.00028234,2]
[359313660,1745913044304,-470.0,0.00028234,2]
[359313661,1745913044315,-470.0,0.00028234,2]
[359313662,1745913044324,-470.0,0.00028234,2]
[359313663,1745913044334,-470.0,0.00028234,2]
[359313664,1745913044345,-470.0,0.00028234,2]
[359313665,1745913044354,-470.0,0.00028234,2]
[359313666,1745913044364,-470.0,0.00028234,2]
[359313667,1745913044373,-470.0,0.00028234,2]
[359313668,1745913044383,-470.0,0.00028234,2]
[359313669,1745913044392,-470.0,0.00028234,2]
[359313670,1745913044406,-470.0,0.00028234,2]
[359313671,1745913044415,-470.0,0.00028234,2]
[359313672,1745913044425,-470.0,0.00028234,2]
[359313673,1745913044435,-470.0,0.00028234,2]
[359313674,1745913044447,-314.68905917,0.00028234,2]
[359313675,1745913044457,-470.0,0.00028234,2]
[359313676,1745913044467,-470.0,0.00028234,2]
[359313677,1745913044477,-470.0,0.00028234,2]
[359313678,1745913044486,-470.0,0.00028234,2]
[359313679,1745913044495,-246.88536534,0.00028234,2]
[359313680,1745913044505,-715.27,0.00028234,2]
[359313681,1745913044515,-400.87069824,0.00028234,2]
[359313682,1745913044525,-470.0,0.00028234,2]
[359313683,1745913044534,-470.0,0.00028234,2]
[359313684,1745913044543,-544.94477294,0.00028234,2]
[359313685,1745913044554,-470.0,0.00028234,2]
[359313686,1745913044566,-470.0,0.00028234,2]
[359313687,1745913044575,-470.0,0.00028234,2]
[359313688,1745913044587,-470.0,0.00028234,2]
[359313689,1745913044597,-470.0,0.00028234,2]
[359313690,1745913044607,-543.9739278,0.00028234,2]
[359313691,1745913044616,-470.0,0.00028234,2]
[359313692,1745913044626,-349.17821084,0.00028234,2]
[359313693,1745913044635,-470.0,0.00028234,2]
[359313694,1745913044644,-470.0,0.00028234,2]
[359313695,1745913044653,-250.98377082,0.00028234,2]
[359313696,1745913044663,-459.82510216,0.00028234,2]
[359313697,1745913044672,-470.0,0.00028234,2]
[359313698,1745913044682,-241.42784223,0.00028234,2]
[359313699,1745913044691,-470.0,0.00028234,2]
[359313700,1745913044700,-470.0,0.00028234,2]
[359313701,1745913044710,-470.0,0.00028234,2]
[359313702,1745913044720,-503.93505354,0.00028234,2]
[359313703,1745913044729,-470.0,0.00028234,2]
[359313704,1745913044739,-470.0,0.00028234,2]
[359313705,1745913044748,-627.15,0.00028234,2]
[359313706,1745913044758,-470.0,0.00028234,2]
[359313707,1745913044768,-470.0,0.00028234,2]
[359313708,1745913044779,-470.0,0.00028234,2]
[359313709,1745913044788,-470.0,0.00028234,2]
[359313710,1745913044798,-470.0,0.00028234,2]
[359313711,1745913044808,-650.96,0.00028234,2]
[359313712,1745913044819,-470.0,0.00028234,2]
[359313713,1745913044828,-264.98884095,0.00028234,2]
[359313714,1745913044837,-470.0,0.00028234,2]
[359313715,1745913044847,-428.64450674,0.00028234,2]
[359313716,1745913044859,-567.4071326,0.00028234,2]
[359313717,1745913044872,-470.0,0.00028234,2]
[359313718,1745913044883,-470.0,0.00028234,2]
[359313719,1745913044893,-470.0,0.00028234,2]
[359313720,1745913044903,-422.26119446,0.00028234,2]
[359313721,1745913044913,-470.0,0.00028234,2]
[359313722,1745913044922,-470.0,0.00028234,2]
[359313723,1745913044932,-600.09575515,0.00028234,2]
[359313724,1745913044941,-470.0,0.00028234,2]
[359313725,1745913044953,-602.35,0.00028234,2]
[359313726,1745913044964,-160.91362559,0.00028235,2]
[359313727,1745913044975,-2185.4044,0.00028237,2]
[359313728,1745913044987,-167.31250492,0.00028237,2]
[359313729,1745913044997,-166.69960875,0.00028237,2]
[359313730,1745913045010,-160.91362559,0.00028237,2]
[359313731,1745913045020,-2008.25737754,0.00028237,2]
[359313732,1745913045040,-924.79256052,0.00028237,2]
[359313733,1745913045053,-29802.595266,0.00028306,2]
[359313734,1745913045063,-6220.49605275,0.00028306,2]
[359313735,1745913045628,-3.41718885,0.00028216,2]
[359313738,1745913046369,-466.58281115,0.00028216,2]
[359313739,1745913046379,-478.07944562,0.00028234,2]
[359313740,1745913046389,-23582.09921325,0.00028306,2]
[359313741,1745913046402,-29802.595266,0.00028307,2]
[359313742,1745913046411,-470.0,0.00028315,2]
[359313743,1745913046421,-470.0,0.00028315,2]
[359313744,1745913046431,-470.0,0.00028315,2]
[359313746,1745913046442,-470.0,0.00028315,2]
[359313748,1745913046452,-1178.523003,0.00028315,2]
[359313749,1745913046461,-470.0,0.00028315,2]
[359313751,1745913046471,-510.45,0.00028315,2]
[359313752,1745913046483,-178.856008,0.00028315,2]
[359313753,1745913046494,-528.254877,0.00028315,2]
[359313754,1745913046504,-470.0,0.00028315,2]
[359313755,1745913046514,-168.642672,0.00028315,2]
[359313756,1745913046523,-996.47,0.00028315,2]
[359313757,1745913046533,-659.86,0.00028315,2]
[359313758,1745913046543,-470.0,0.00028315,2]
[359313759,1745913046553,-470.0,0.00028315,2]
[359313760,1745913046562,-470.0,0.00028315,2]
[359313761,1745913046572,-470.0,0.00028315,2]
[359313762,1745913046582,-470.0,0.00028315,2]
[359313763,1745913046592,-1181.51,0.00028315,2]
[359313764,1745913046602,-594.13,0.00028315,2]
[359313766,1745913046611,-626.73,0.00028315,2]
[359313767,1745913046621,-470.0,0.00028315,2]
[359313768,1745913046630,-470.0,0.00028315,2]
[359313769,1745913046640,-470.0,0.00028315,2]
[359313770,1745913046650,-543.90279324,0.00028315,2]
[359313771,1745913046659,-470.0,0.00028315,2]
[359313772,1745913046669,-624.68,0.00028315,2]
[359313773,1745913046678,-470.0,0.00028315,2]
[359313774,1745913046687,-470.0,0.00028315,2]
[359313775,1745913046697,-239.37347297,0.00028316,2]
[359313776,1745913047092,-251.05216898,0.00027176,2]
[359313777,1745913047103,-1154.78556704,0.00028237,2]
[359313778,1745913047120,-1152.5578974,0.00028237,2]
[359313779,1745913047130,-230.62652703,0.00028316,2]
[359313780,1745913047141,-718.27,0.00028316,2]
[359313781,1745913047152,-470.0,0.00028316,2]
[359313782,1745913047163,-1013.34,0.00028316,2]
[359313783,1745913047173,-470.0,0.00028316,2]
[359313784,1745913047182,-470.0,0.00028316,2]
[359313785,1745913047190,-470.0,0.00028316,2]
[359313786,1745913047198,-470.0,0.00028316,2]
[359313787,1745913047207,-470.0,0.00028316,2]
[359313788,1745913047216,-470.0,0.00028316,2]
[359313789,1745913047225,-394.51457758,0.00028316,2]
[359313790,1745913047235,-522.25,0.00028316,2]
[359313791,1745913047246,-470.0,0.00028316,2]
[359313792,1745913047255,-470.0,0.00028316,2]
[359313793,1745913047264,-262.04399799,0.00028316,2]
[359313794,1745913047277,-207.95600201,0.00028316,2]
[359313795,1745913047286,-470.0,0.00028316,2]
[359313796,1745913047296,-524.71,0.00028316,2]
[359313797,1745913047305,-470.0,0.00028316,2]
[359313798,1745913047314,-512.6,0.00028316,2]
[359313799,1745913047323,-470.0,0.00028316,2]
[359313800,1745913047331,-65.21755753,0.00028316,2]
[359313801,1745913122251,200.0,0.00031038,117]
[359313802,1745913122473,200.0,0.00028217,117]
[359313803,1745913122543,200.0,0.00028227,117]
[359313804,1745913410529,80029.29751765,0.00036986,60]
[359313805,1745913469833,6161.9639164,0.00036,120]
[359313806,1745913485020,250.0,0.00017,2]
[359313807,1745913486112,300.0,0.00019,2]
[359313819,1745914232210,-350.0,0.00021,2]
[359313820,1745914232219,-169.04,0.00024399,2]
[359313821,1745914232229,-793.86,0.00025281,2]
[359313822,1745914232239,-207.4,0.00026912,2]
[359313823,1745914232250,-155.0,0.00027,7]
[359313824,1745914232261,-123.54122781,0.00027185,2]
[359313825,1745914232282,-126.45877219,0.00027185,2]
[359313826,1745914232292,-489.39680982,0.00027226,2]
[359313827,1745914232335,-413.4455413,0.00027226,2]
[359313900,1745914238350,-220.0,0.0002709,2]
[359313901,1745914238359,-97.15764888,0.00027226,2]
[359313902,1745914238367,-180.8396312,0.00027226,2]
[359313903,1745914238377,-175.08,0.00027262,2]
[359313904,1745914238386,-165.17,0.00027293,2]
[359313905,1745914238395,-444.44,0.00027397,2]
[359313906,1745914238404,-152.02,0.00027397,2]
[359313907,1745914238413,-230.68,0.00027397,2]
[359313908,1745914238422,-793.86,0.00027545,2]
[359313909,1745914238431,-159.97,0.00027961,2]
[359313910,1745914238440,-1200.0,0.00028108,2]
[359313911,1745914238449,-2000.0,0.0002811,15]
[359313912,1745914238459,-200.0,0.0002811,2]
[359313913,1745914238468,-4524.3,0.0002811,10]
[359313914,1745914238477,-160.52554917,0.00028125,2]
[359313915,1745914238486,-29999.99,0.00028133,2]
[359313916,1745914238495,-6266.1248,0.00028133,2]
[359313917,1745914238505,-655.51363897,0.00028134,2]
[359313918,1745914238513,-655.51363888,0.00028145,2]
[359313919,1745914238523,-655.51363888,0.00028157,2]
[359313920,1745914238532,-655.51363888,0.00028168,2]
[359313921,1745914238541,-655.51363888,0.0002818,2]
[359313922,1745914238550,-655.51363888,0.00028191,2]
[359313923,1745914238559,-150.99,0.00028195,2]
[359313924,1745914238569,-500.0,0.00028195,2]
[359313925,1745914238577,-499.1208,0.00028195,2]
[359313926,1745914238586,-655.51363888,0.00028203,2]
[359313927,1745914238596,-171.19106511,0.00028207,2]
[359313928,1745914238605,-42139.25958916,0.00028207,2]
[359313929,1745914238621,-843.16682932,0.00028207,2]
[359313930,1745914238636,-29264.59833013,0.00028207,2]
[359313931,1745914238648,-1706.78339589,0.00028207,2]
[359313932,1745914238658,-655.51363888,0.00028214,2]
[359313933,1745914238667,-9072.05001238,0.00028224,2]
[359313936,1745914238685,-22500.33237322,0.00028224,2]
[359313937,1745914238695,-655.51363888,0.00028226,2]
[359313938,1745914238704,-31572.3823856,0.00028226,2]
[359313939,1745914238714,-243.53496709,0.00028231,2]
[359313940,1745914238724,-2076.54,0.00028232,2]
[359313941,1745914238734,-470.0,0.00028232,2]
[359313942,1745914238744,-8166.773116,0.00028232,2]
[359313943,1745914238755,-470.0,0.00028232,2]
[359313944,1745914238764,-470.0,0.00028232,2]
[359313945,1745914238774,-470.0,0.00028232,2]
[359313946,1745914238784,-470.0,0.00028232,2]
[359313947,1745914238793,-1129.417878,0.00028232,2]
[359313948,1745914238803,-178.856008,0.00028232,2]
[359313949,1745914238814,-489.18,0.00028232,2]
[359313950,1745914238824,-506.244258,0.00028232,2]
[359313951,1745914238833,-954.95,0.00028232,2]
[359313952,1745914238842,-168.642672,0.00028232,2]
[359313953,1745914238852,-470.0,0.00028232,2]
[359313954,1745914238862,-470.0,0.00028232,2]
[359313955,1745914238872,-632.37,0.00028232,2]
[359313956,1745914238881,-538.90001691,0.00028232,2]
[359313957,1745914238890,-470.0,0.00028232,2]
[359313958,1745914238899,-470.0,0.00028232,2]
[359313959,1745914238908,-470.0,0.00028232,2]
[359313960,1745914238917,-470.0,0.00028232,2]
[359313961,1745914238927,-470.0,0.00028232,2]
[359313962,1745914238936,-1132.28,0.00028232,2]
[359313963,1745914238945,-470.0,0.00028232,2]
[359313964,1745914238954,-470.0,0.00028232,2]
[359313965,1745914238963,-470.0,0.00028232,2]
[359313966,1745914238972,-470.0,0.00028232,2]
[359313967,1745914238981,-550.55,0.00028232,2]
[359313968,1745914238990,-470.0,0.00028232,2]
[359313969,1745914239000,-470.0,0.00028232,2]
[359313970,1745914239009,-702.55,0.00028232,2]
[359313971,1745914239018,-470.0,0.00028232,2]
[359313972,1745914239027,-470.0,0.00028232,2]
[359313973,1745914239037,-540.85,0.00028232,2]
[359313974,1745914239046,-621.78,0.00028232,2]
[359313975,1745914239055,-470.0,0.00028232,2]
[359313976,1745914239064,-520.92,0.00028232,2]
[359313977,1745914239073,-470.0,0.00028232,2]
[359313978,1745914239082,-763.09,0.00028232,2]
[359313979,1745914239091,-470.0,0.00028232,2]
[359313980,1745914239100,-470.0,0.00028232,2]
[359313981,1745914239109,-470.0,0.00028232,2]
[359313982,1745914239119,-470.0,0.00028232,2]
[359313983,1745914239128,-470.0,0.00028232,2]
[359313984,1745914239137,-600.86,0.00028232,2]
[359313985,1745914239146,-598.66,0.00028232,2]
[359313986,1745914239156,-955.46,0.00028232,2]
[359313987,1745914239166,-538.25,0.00028232,2]
[359313988,1745914239175,-470.0,0.00028232,2]
[359313989,1745914239184,-470.0,0.00028232,2]
[359313990,1745914239194,-470.0,0.00028232,2]
[359313991,1745914239203,-470.0,0.00028232,2]
[359313992,1745914239213,-470.0,0.00028232,2]
[359313993,1745914239222,-470.0,0.00028232,2]
[359313994,1745914239232,-584.89,0.00028232,2]
[359313995,1745914239242,-470.0,0.00028232,2]
[359313996,1745914239251,-470.0,0.00028232,2]
[359313997,1745914239262,-470.0,0.00028232,2]
[359313998,1745914239271,-194.22268632,0.00028232,2]
[359313999,1745914239287,-275.77731368,0.00028232,2]
[359314000,1745914239296,-306.90369665,0.00028232,2]
[359314001,1745914240425,-398.38630335,0.00028232,2]
[359314002,1745914240435,-261.61369665,0.00028232,2]
[359314003,1745914240492,-314.51630335,0.00028232,2]
[359314004,1745914240503,-470.0,0.00028232,2]
[359314005,1745914240513,-519.07,0.00028232,2]
[359314006,1745914240523,-6170.66,0.00028232,2]
[359314007,1745914240534,-544.19899845,0.00028233,2]
[359314008,1745914240543,-470.0,0.00028233,2]
[359314009,1745914240554,-470.0,0.00028233,2]
[359314010,1745914240563,-470.0,0.00028233,2]
[359314011,1745914240573,-612.15,0.00028233,2]
[359314012,1745914240583,-470.0,0.00028233,2]
[359314013,1745914240592,-470.0,0.00028233,2]
[359314014,1745914240602,-621.13,0.00028233,2]
[359314015,1745914240612,-470.0,0.00028233,2]
[359314016,1745914240621,-470.0,0.00028233,2]
[359314017,1745914240631,-470.0,0.00028233,2]
[359314018,1745914240641,-470.0,0.00028233,2]
[359314019,1745914240651,-544.35220303,0.00028233,2]
[359314020,1745914240660,-544.06,0.00028233,2]
[359314021,1745914240670,-470.0,0.00028233,2]
[359314022,1745914240680,-470.0,0.00028233,2]
[359314023,1745914240690,-470.0,0.00028233,2]
[359314024,1745914240699,-486.33,0.00028233,2]
[359314025,1745914240709,-470.0,0.00028233,2]
[359314026,1745914240719,-470.0,0.00028233,2]
[359314027,1745914240728,-470.0,0.00028233,2]
[359314028,1745914240738,-470.0,0.00028233,2]
[359314029,1745914240747,-470.0,0.00028233,2]
[359314030,1745914240757,-470.0,0.00028233,2]
[359314031,1745914240766,-470.0,0.00028233,2]
[359314032,1745914240775,-470.0,0.00028233,2]
[359314033,1745914240785,-470.0,0.00028233,2]
[359314034,1745914240795,-314.68905917,0.00028233,2]
[359314035,1745914240805,-500.49,0.00028233,2]
[359314036,1745914240814,-470.0,0.00028233,2]
[359314037,1745914240824,-470.0,0.00028233,2]
[359314038,1745914240834,-470.0,0.00028233,2]
[359314039,1745914240843,-470.0,0.00028233,2]
[359314040,1745914240853,-524.08,0.00028233,2]
[359314041,1745914240863,-581.59,0.00028233,2]
[359314042,1745914240873,-470.0,0.00028233,2]
[359314043,1745914240883,-470.0,0.00028233,2]
[359314044,1745914240892,-470.0,0.00028233,2]
[359314045,1745914240902,-470.0,0.00028233,2]
[359314046,1745914240911,-470.0,0.00028233,2]
[359314047,1745914240921,-470.0,0.00028233,2]
[359314048,1745914240930,-470.0,0.00028233,2]
[359314049,1745914240939,-470.0,0.00028233,2]
[359314050,1745914240948,-470.0,0.00028233,2]
[359314051,1745914240957,-502.85,0.00028233,2]
[359314052,1745914240967,-477.92,0.00028233,2]
[359314053,1745914240976,-470.0,0.00028233,2]
[359314055,1745914240986,-470.0,0.00028233,2]
[359314056,1745914240995,-553.07,0.00028233,2]
[359314057,1745914241005,-470.0,0.00028233,2]
[359314058,1745914241014,-470.0,0.00028233,2]
[359314059,1745914241023,-470.0,0.00028233,2]
[359314060,1745914241033,-543.9739278,0.00028233,2]
[359314061,1745914241043,-470.0,0.00028233,2]
[359314062,1745914241054,-470.0,0.00028233,2]
[359314063,1745914241065,-470.0,0.00028233,2]
[359314064,1745914241075,-533.97,0.00028233,2]
[359314065,1745914241086,-250.98377082,0.00028233,2]
[359314066,1745914241095,-459.82510216,0.00028233,2]
[359314067,1745914241105,-470.0,0.00028233,2]
[359314068,1745914241115,-470.0,0.00028233,2]
[359314069,1745914241126,-470.0,0.00028233,2]
[359314070,1745914241137,-470.0,0.00028233,2]
[359314071,1745914241150,-470.0,0.00028233,2]
[359314072,1745914241161,-470.0,0.00028233,2]
[359314073,1745914241170,-470.0,0.00028233,2]
[359314074,1745914241181,-470.0,0.00028233,2]
[359314075,1745914241192,-510.47597925,0.00028233,2]
[359314076,1745914241202,-470.0,0.00028233,2]
[359314077,1745914241213,-470.0,0.00028233,2]
[359314078,1745914241226,-470.0,0.00028233,2]
[359314079,1745914241236,-802.47,0.00028233,2]
[359314080,1745914241246,-611.53,0.00028233,2]
[359314081,1745914241257,-470.0,0.00028233,2]
[359314082,1745914241268,-470.0,0.00028233,2]
[359314083,1745914241280,-470.0,0.00028233,2]
[359314084,1745914241289,-470.0,0.00028233,2]
[359314085,1745914241301,-521.65,0.00028233,2]
[359314086,1745914241312,-515.75906804,0.00028233,2]
[359314087,1745914241322,-400.0,0.00028233,2]
[359314088,1745914241332,-185.39998308,0.00028233,2]
[359314089,1745914241342,-264.98884095,0.00028233,2]
[359314090,1745914241353,-470.0,0.00028233,2]
[359314091,1745914241362,-470.0,0.00028233,2]
[359314092,1745914241372,-586.1,0.00028233,2]
[359314093,1745914241384,-470.0,0.00028233,2]
[359314094,1745914241394,-470.0,0.00028233,2]
[359314095,1745914241404,-470.0,0.00028233,2]
[359314096,1745914241414,-470.0,0.00028233,2]
[359314097,1745914241425,-470.0,0.00028233,2]
[359314098,1745914241436,-470.0,0.00028233,2]
[359314099,1745914241665,-470.0,0.00028233,2]
[359314100,1745914241675,-470.0,0.00028233,2]
[359314101,1745914241685,-470.0,0.00028233,2]
[359314102,1745914241694,-470.0,0.00028233,2]
[359314103,1745914241704,-470.0,0.00028233,2]
[359314104,1745914241713,-470.0,0.00028233,2]
[359314105,1745914241723,-470.0,0.00028233,2]
[359314106,1745914241732,-470.0,0.00028233,2]
[359314107,1745914241741,-428.64450674,0.00028233,2]
[359314108,1745914241751,-470.0,0.00028233,2]
[359314109,1745914241761,-470.0,0.00028233,2]
[359314110,1745914241770,-470.0,0.00028233,2]
[359314111,1745914241780,-470.0,0.00028233,2]
[359314112,1745914241790,-470.0,0.00028233,2]
[359314113,1745914241800,-470.0,0.00028233,2]
[359314114,1745914241809,-470.0,0.00028233,2]
[359314115,1745914241822,-470.0,0.00028233,2]
[359314116,1745914241831,-1025.09,0.00028233,2]
[359314117,1745914241841,-470.0,0.00028233,2]
[359314118,1745914241850,-470.0,0.00028233,2]
[359314119,1745914241861,-470.0,0.00028233,2]
[359314120,1745914241870,-470.0,0.00028233,2]
[359314121,1745914241880,-470.0,0.00028233,2]
[359314122,1745914241889,-470.0,0.00028233,2]
[359314123,1745914241900,-470.0,0.00028233,2]
[359314124,1745914241910,-534.41,0.00028233,2]
[359314125,1745914241920,-470.0,0.00028233,2]
[359314126,1745914241931,-470.0,0.00028233,2]
[359314127,1745914241941,-470.0,0.00028233,2]
[359314128,1745914241951,-470.0,0.00028233,2]
[359314129,1745914241961,-470.0,0.00028233,2]
[359314130,1745914241970,-470.0,0.00028233,2]
[359314131,1745914241979,-470.0,0.00028233,2]
[359314132,1745914241989,-470.0,0.00028233,2]
[359314133,1745914241999,-470.0,0.00028233,2]
[359314134,1745914242009,-470.0,0.00028233,2]
[359314135,1745914242018,-470.0,0.00028233,2]
[359314136,1745914242027,-470.0,0.00028233,2]
[359314137,1745914242037,-470.0,0.00028233,2]
[359314138,1745914242047,-808.09,0.00028233,2]
[359314139,1745914242056,-470.0,0.00028233,2]
[359314140,1745914242066,-470.0,0.00028233,2]
[359314141,1745914242075,-470.0,0.00028233,2]
[359314142,1745914242084,-470.0,0.00028233,2]
[359314143,1745914242094,-572.79,0.00028233,2]
[359314144,1745914242103,-470.0,0.00028233,2]
[359314145,1745914242112,-470.0,0.00028233,2]
[359314146,1745914242121,-470.0,0.00028233,2]
[359314147,1745914242131,-470.0,0.00028233,2]
[359314148,1745914242140,-470.0,0.00028233,2]
[359314149,1745914242150,-470.0,0.00028233,2]
[359314150,1745914242159,-470.0,0.00028233,2]
[359314151,1745914242168,-470.0,0.00028233,2]
[359314152,1745914242178,-470.0,0.00028233,2]
[359314153,1745914242187,-470.0,0.00028233,2]
[359314154,1745914242197,-873.27,0.00028233,2]
[359314155,1745914242206,-470.0,0.00028233,2]
[359314156,1745914242216,-470.0,0.00028233,2]
[359314157,1745914242225,-1497.3,0.00028233,2]
[359314158,1745914242235,-470.0,0.00028233,2]
[359314159,1745914242245,-470.0,0.00028233,2]
[359314160,1745914242255,-470.0,0.00028233,2]
[359314161,1745914242264,-470.0,0.00028233,2]
[359314162,1745914242274,-470.0,0.00028233,2]
[359314163,1745914242283,-470.0,0.00028233,2]
[359314164,1745914242293,-2728.65,0.00028233,2]
[359314165,1745914242303,-470.0,0.00028233,2]
[359314166,1745914242313,-470.0,0.00028233,2]
[359314167,1745914242322,-470.0,0.00028233,2]
[359314168,1745914242331,-470.0,0.00028233,2]
[359314169,1745914242341,-470.0,0.00028233,2]
[359314170,1745914242351,-470.0,0.00028233,2]
[359314171,1745914242361,-470.0,0.00028233,2]
[359314172,1745914242370,-505.68321696,0.00028233,2]
[359314173,1745914242379,-470.0,0.00028233,2]
[359314174,1745914242389,-470.0,0.00028233,2]
[359314175,1745914242398,-470.0,0.00028233,2]
[359314176,1745914242407,-470.0,0.00028233,2]
[359314177,1745914242416,-470.0,0.00028233,2]
[359314178,1745914242425,-470.0,0.00028233,2]
[359314179,1745914242434,-524.18,0.00028233,2]
[359314180,1745914242444,-470.0,0.00028233,2]
[359314181,1745914242454,-470.0,0.00028233,2]
[359314182,1745914242463,-470.0,0.00028233,2]
[359314183,1745914242472,-470.0,0.00028233,2]
[359314184,1745914242481,-470.0,0.00028233,2]
[359314185,1745914242491,-470.0,0.00028233,2]
[359314186,1745914242500,-470.0,0.00028233,2]
[359314187,1745914242510,-470.0,0.00028233,2]
[359314188,1745914242519,-470.0,0.00028233,2]
[359314189,1745914242529,-470.0,0.00028233,2]
[359314190,1745914242539,-470.0,0.00028233,2]
[359314191,1745914242548,-900.23,0.00028233,2]
[359314192,1745914242558,-470.0,0.00028233,2]
[359314193,1745914242567,-470.0,0.00028233,2]
[359314194,1745914242576,-470.0,0.00028233,2]
[359314195,1745914242586,-1946.9,0.00028233,2]
[359314196,1745914242596,-470.0,0.00028233,2]
[359314197,1745914242606,-470.0,0.00028233,2]
[359314198,1745914242615,-470.0,0.00028233,2]
[359314199,1745914242624,-1181.66,0.00028233,2]
[359314200,1745914242634,-470.0,0.00028233,2]
[359314201,1745914242644,-721.6,0.00028233,2]
[359314202,1745914242653,-288.25205769,0.00028233,2]
[359314203,1745914242663,-470.0,0.00028233,2]
[359314204,1745914242672,-852.97,0.00028233,2]
[359314205,1745914242682,-470.0,0.00028233,2]
[359314206,1745914242691,-470.0,0.00028233,2]
[359314207,1745914242703,-470.0,0.00028233,2]